[Event "Charlotte Spring IM-C 2024"]
[Site "Charlotte"]
[Date "2024.03.31"]
[Round "8.4"]
[White "Wu, Sibo"]
[Black "Posthuma, Joshua"]
[Result "0-1"]
[ECO "A40"]
[WhiteElo "2142"]
[BlackElo "2449"]
[Annotator "RC"]
[PlyCount "194"]
[EventDate "2024.03.27"]
[EventType "tourn"]
[EventCountry "USA"]
[SourceTitle "playchess.com"]
[Source "ChessBase"]
[SourceQuality "1"]
[TimeControl "5400+30"]

1. d4 {[%emt 0:00:03]} g6 {[%emt 0:14:55]} 2. Bf4 {[%emt 0:01:10]} Bg7 {[%emt 0:00:08]} 3. Nc3 {[%emt 0:00:22]} c5 {[%emt 0:00:28]} 4. e3 {[%emt 0:09:19]} Nf6 {[%emt 0:08:50]} 5. Nf3 {[%emt 0:03:27]} O-O {[%emt 0:05:58]} 6. a4 {[%emt 0:06:15]} d6 {[%emt 0:04:37]} 7. h3 {[%emt 0:03:12]} Qa5 {[%emt 0:06:30]} 8. Qd2 {[%emt 0:18:50]} cxd4 {[%emt 0:00:39]} 9. exd4 {[%emt 0:00:28]} Nc6 {[%emt 0:01:42]} 10. Nb5 {[%emt 0:09:39]} Qxd2+ {[%emt 0:02:19]} 11. Bxd2 {[%emt 0:04:20]} Bf5 {[%emt 0:04:35]} 12. Rc1 {[%emt 0:17:10]} Rac8 {[%emt 0:03:47]} 13. Be2 {[%emt 0:01:12]} a6 {[%emt 0:10:08]} 14. Na3 {[%emt 0:03:18]} Nd5 {[%emt 0:05:35]} 15. c3 {[%emt 0:04:51]} Nb6 {[%emt 0:05:16]} 16. Bd1 {[%emt 0:01:14]} Be4 {[%emt 0:03:05]} 17. O-O {[%emt 0:01:30]} Bxf3 {[%emt 0:00:33]} 18. gxf3 {[%emt 0:00:04]} d5 {[%emt 0:02:19]} 19. b3 {[%emt 0:03:08]} e6 {[%emt 0:00:45]} 20. Be2 {[%emt 0:02:56]} Rfd8 {[%emt 0:01:49]} 21. Nc2 {[%emt 0:01:06]} h5 {[%emt 0:00:57]} 22. Ne1 {[%emt 0:00:33]} Nd7 {[%emt 0:04:19]} 23. Nd3 {[%emt 0:00:20]} Ne7 {[%emt 0:00:25]} 24. b4 {[%emt 0:01:33]} Nf5 {[%emt 0:01:57]} 25. b5 {[%emt 0:01:03]} axb5 {[%emt 0:01:16]} 26. axb5 {[%emt 0:00:05]} Nd6 {[%emt 0:00:23]} 27. Rb1 {[%emt 0:00:57]} Nc4 {[%emt 0:00:59]} 28. Bf4 {[%emt 0:00:35]} Ra8 {[%emt 0:00:35]} 29. Ra1 {[%emt 0:00:59]} Rdc8 {[%emt 0:00:12]} 30. Rxa8 {[%emt 0:01:33]} Rxa8 {[%emt 0:00:01]} 31. Nc5 {[%emt 0:00:10]} Nxc5 {[%emt 0:00:49]} 32. dxc5 {[%emt 0:00:03]} Be5 {[%emt 0:04:30]} 33. Bxe5 {[%emt 0:03:24]} Nxe5 {[%emt 0:00:01]} 34. f4 {[%emt 0:00:31]} Nd7 {[%emt 0:00:51]} 35. c6 {[%emt 0:00:04]} bxc6 {[%emt 0:00:05]} 36. bxc6 {[%emt 0:00:03]} Nc5 {[%emt 0:00:23]} 37. c4 {[%emt 0:00:35]} dxc4 {[%emt 0:02:04]} 38. Rc1 {[%emt 0:00:37]} Rc8 {[%emt 0:00:56]} 39. Bf3 {[%emt 0:00:07]} Nb3 {[%emt 0:00:34]} 40. Rxc4 {[%emt 0:02:10]} Nd2 {[%emt 0:00:06]} 41. Rc3 {[%emt 0:00:12]} Nxf3+ {[%emt 0:00:02]} 42. Rxf3 {[%emt 0:00:05]} Rxc6 {[%emt 0:00:02]} 43. Kg2 {[%emt 0:00:37]} Kg7 {[%emt 0:02:15]} 44. Kg3 {[%emt 0:00:10]} Kf6 {[%emt 0:00:21]} 45. Rb3 {[%emt 0:00:23]} Rc5 {[%emt 0:01:22]} 46. Ra3 {[%emt 0:00:23]} Kf5 {[%emt 0:00:15]} 47. Rb3 {[%emt 0:01:01]} Rd5 {[%emt 0:01:31]} 48. Re3 {[%emt 0:00:48]} Rc5 {[%emt 0:01:40]} 49. Ra3 {[%emt 0:00:11]} Rc4 {[%emt 0:01:15]} 50. Ra5+ {[%emt 0:00:25]} Ke4 {[%emt 0:00:45]} 51. Re5+ {[%emt 0:01:24]} Kd4 {[%emt 0:00:08]} 52. Ra5 {[%emt 0:00:22]} Rc3+ {[%emt 0:00:15]} 53. Kg2 {[%emt 0:00:34]} Ke4 {[%emt 0:00:35]} 54. Ra4+ {[%emt 0:00:12]} Kf5 {[%emt 0:00:23]} 55. Rb4 {[%emt 0:00:04]} Ra3 {[%emt 0:00:42]} 56. Rc4 {[%emt 0:00:08]} Rb3 {[%emt 0:00:34]} 57. Ra4 {[%emt 0:00:05]} Rd3 {[%emt 0:00:44]} 58. Rb4 {[%emt 0:00:12]} Kf6 {[%emt 0:00:30]} 59. Rb5 {[%emt 0:00:36]} Rd5 {[%emt 0:00:36]} 60. Rb4 {[%emt 0:00:08]} Ra5 {[%emt 0:00:24]} 61. Kg3 {[%emt 0:00:28]} Kf5 {[%emt 0:00:22]} 62. Rc4 {[%emt 0:00:37]} h4+ {[%emt 0:00:22]} 63. Kg2 {[%emt 0:00:41]} Ra3 {[%emt 0:00:28]} 64. Rb4 {[%emt 0:00:07]} Rd3 {[%emt 0:00:28]} 65. Ra4 {[%emt 0:00:24]} Kf6 {[%emt 0:00:42]} 66. Ra5 {[%emt 0:00:14]} Rd5 {[%emt 0:00:20]} 67. Ra4 {[%emt 0:00:14]} Rf5 {[%emt 0:00:33]} 68. Rb4 {[%emt 0:00:22]} Ke7 {[%emt 0:00:40]} 69. Rd4 {[%emt 0:00:42]} Rd5 {[%emt 0:00:10]} 70. Ra4 {[%emt 0:00:06]} f5 {[%emt 0:00:54]} 71. Ra7+ {[%emt 0:00:35]} Rd7 {[%emt 0:00:14]} 72. Ra6 {[%emt 0:00:31]} Kf6 {[%emt 0:00:16]} 73. Ra8 {[%emt 0:00:52]} Rd4 {[%emt 0:00:58]} 74. Kf3 {[%emt 0:00:11]} Rd3+ {[%emt 0:00:02]} 75. Kg2 {[%emt 0:00:06]} g5 {[%emt 0:00:40]} 76. fxg5+ {[%emt 0:01:25]} Kxg5 {[%emt 0:00:06]} 77. Rg8+ {[%emt 0:00:41]} Kf6 {[%emt 0:00:11]} 78. Rh8 {[%emt 0:00:18]} Rd4 {[%emt 0:00:05]} 79. Ra8 {[%emt 0:00:28]} e5 {[%emt 0:00:34]} 80. Rf8+ {[%emt 0:02:29]} Kg6 {[%emt 0:00:23]} 81. Re8 {[%emt 0:00:25]} e4 {[%emt 0:00:34]} 82. Ra8 {[%emt 0:01:01]} Rd2 {[%emt 0:00:38]} 83. Ra3 {[%emt 0:00:22]} Kf6 {[%emt 0:00:51]} 84. Rb3 {[%emt 0:00:32]} f4 {[%emt 0:00:48]} 85. Kg1 {[%emt 0:01:20]} Ke5 {[%emt 0:00:35]} 86. Rb4 {[%emt 0:00:25]} Rd3 {[%emt 0:00:35]} 87. Kg2 {[%emt 0:00:24]} f3+ {[%emt 0:00:43]} 88. Kg1 {[%emt 0:00:17]} Rd1+ {[%emt 0:00:18]} 89. Kh2 {[%emt 0:00:04]} e3 {[%emt 0:00:19]} 90. Rb5+ {[%emt 0:00:28]} Rd5 {[%emt 0:01:04]} 91. Rb3 {[%emt 0:00:21]} e2 {[%emt 0:00:25]} 92. Re3+ {[%emt 0:00:04]} Kf4 {[%emt 0:00:27]} 93. Re8 {[%emt 0:00:06]} Re5 {[%emt 0:00:23]} 94. Rf8+ {[%emt 0:00:26]} Ke4 {[%emt 0:00:06]} 95. Rf7 {[%emt 0:00:12]} e1=Q {[%emt 0:01:07]} 96. Rf4+ {[%emt 0:00:03]} Kd3 {[%emt 0:00:10]} 97. Rd4+ {[%emt 0:00:09]} Ke2 {[%emt 0:00:12]} 0-1

[Event "Charlotte Spring IM-C 2024"]
[Site "Charlotte"]
[Date "2024.03.31"]
[Round "8.5"]
[White "Melillo, Lucius"]
[Black "Komarov, Dimitri"]
[Result "1/2-1/2"]
[ECO "C47"]
[WhiteElo "2274"]
[BlackElo "2448"]
[Annotator "TA"]
[PlyCount "44"]
[EventDate "2024.03.27"]
[EventType "tourn"]
[EventCountry "USA"]
[SourceTitle "playchess.com"]
[Source "ChessBase"]
[SourceQuality "1"]
[TimeControl "5400+30"]

{[%evp 9,44,0,0,-1,5,0,0,-21,0,-8,2,-8,0,0,0,0,-8,-16,-21,-34,-36,-39,-40,-37,-29,-32,-27,-25,-20,-43,-45,-43,0,0,17,0,0]} 1. e4 {[%emt 0:03:29]} e5 {[%emt 0:00:00]} 2. Nf3 {[%emt 0:00:07]} Nc6 {[%emt 0:00:04]} 3. Nc3 {[%emt 0:00:22]} Nf6 {[%emt 0:06:26]} 4. a3 {[%emt 0:01:22]} g6 {[%emt 0:00:30]} 5. d4 {[%emt 0:00:30]} exd4 {[%emt 0:00:06]} 6. Nxd4 {[%emt 0:00:05]} Bg7 {[%emt 0:00:04]} 7. Nxc6 {[%emt 0:03:03]} bxc6 {[%emt 0:00:38]} 8. Bd3 {[%emt 0:00:05]} O-O {[%emt 0:02:42]} 9. O-O {[%emt 0:00:58]} d5 {[%emt 1:24:30]} 10. Qf3 {[%emt 1:25:29]} Rb8 {[%emt 0:00:00]} 11. Rb1 {[%emt 0:00:00]} Bg4 {[%emt 0:01:00]} 12. Qg3 {[%emt 0:00:00] [#] e5 would now be deadly.} Qd7 {[%emt 0:00:00] White must now prevent ...Nh5.} 13. h3 {[%emt 0:00:00]} (13. f3 {looks sharper.} Nxe4 14. Nxe4 dxe4 15. fxe4 a5 16. b3) 13... dxe4 {[%emt 0:00:00]} 14. Nxe4 {[%emt 0:00:00]} Nxe4 {[%emt 0:01:30][%cal Bf6e4,Be4c3,Bc3a4,Ba4b2][%mdl 32]} 15. Qxg4 {[%emt 0:00:00]} Qxg4 {[%emt 0:00:00]} 16. hxg4 {[%emt 0:00:00]} Nc3 {[%emt 0:00:00]} 17. Ra1 {[%emt 0:00:00]} (17. bxc3 $2 {too greedy.} Rxb1 18. g3 Rfb8 $19 (18... Bxc3 $2 19. Be3 $19)) 17... Na4 {[%emt 0:00:00]} 18. Rb1 {[%emt 0:00:00]} Bxb2 {[%emt 0:00:00]} 19. Bxb2 {[%emt 0:00:00]} Nxb2 {[%emt 0:00:00]} 20. Rfe1 {[%emt 0:00:00]} Rb6 {[%emt 0:00:00]} 21. Bf1 {[%emt 0:00:00]} c5 {[%emt 0:00:00]} 22. Re7 {[%emt 0:00:00][%mdl 1024] White has compensation.} (22. Re5 $5 {[%cal Re5c5]}) 22... Rc8 {[%emt 0:00:00] Weighted Error Value: White=0.06 (flawless) /Black=0.08 (flawless) .  Inaccurate:     	---       	Black=1      OK:         	White=7     	Black=4      Best:        	---       	Black=1} 1/2-1/2

[Event "Charlotte Spring IM-C 2024"]
[Site "Charlotte"]
[Date "2024.03.31"]
[Round "9.1"]
[White "Komarov, Dimitri"]
[Black "Eckert, Doug"]
[Result "1-0"]
[ECO "D38"]
[WhiteElo "2448"]
[BlackElo "2146"]
[Annotator "TA"]
[PlyCount "83"]
[EventDate "2024.03.27"]
[EventType "tourn"]
[EventCountry "USA"]
[SourceTitle "playchess.com"]
[Source "ChessBase"]
[SourceQuality "1"]
[TimeControl "5400+30"]

{[%evp 24,83,34,23,88,97,85,85,89,85,85,89,107,113,118,109,122,110,121,108,164,145,153,152,136,143,208,204,212,225,212,214,309,303,276,300,304,294,536,491,529,449,547,551,644,645,638,635,665,652,631,636,777,732,782,550,781,794,816,815,737,702]} 1. d4 {[%emt 0:01:04]} d5 {[%emt 0:00:06]} 2. Nf3 {[%emt 0:00:23]} Nf6 {[%emt 0:00:06]} 3. c4 {[%emt 0:00:01]} e6 {[%emt 0:00:06]} 4. Nc3 {[%emt 0:00:02]} Nbd7 {[%emt 0:00:10]} 5. Bg5 {[%emt 0:02:14]} Bb4 {[%emt 0:00:15]} 6. e3 {[%emt 0:01:43]} c5 {[%emt 0:00:12]} 7. cxd5 {[%emt 0:00:34]} exd5 {[%emt 0:00:08]} 8. Qc2 {[%emt 0:02:18]} Qa5 {[%emt 0:00:29]} 9. Bd3 {[%emt 0:00:10]} c4 {[%emt 0:01:14]} 10. Bf5 {[%emt 0:00:05]} O-O {[%emt 0:01:12]} 11. O-O {[%emt 0:00:05]} Bxc3 {[%emt 0:01:10]} 12. Qxc3 {[%emt 0:09:46]} Qxc3 {[%emt 0:01:26]} 13. bxc3 {[%emt 0:00:28]} g6 {[%emt 0:05:33]} (13... h6 $11 14. Bxf6 Nxf6 15. Bxc8 Rfxc8) 14. Bc2 $16 {[%emt 0:00:50] White is much more active.} Kg7 {[%emt 0:04:06]} 15. Nd2 {[%emt 0:02:22]} h6 {[%emt 0:06:26] White is better.} 16. Bh4 {[%emt 0:03:49]} Re8 {[%emt 0:02:42]} 17. Rfe1 {[%emt 0:01:36]} Nb6 {[%emt 0:06:45]} 18. f3 {[%emt 0:02:20] Repels Ne4} Bd7 {[%emt 0:01:46]} 19. a4 {[%emt 0:04:21]} Bc6 {[%emt 0:00:30]} 20. Bf2 {[%emt 0:05:50]} Nbd7 {[%emt 0:04:03]} 21. e4 {[%emt 0:09:08][%cal Be3e4,Be4e5][%mdl 32]} b6 {[%emt 0:07:12]} (21... Nf8 $16 22. Bg3 b6) 22. e5 $18 {[%emt 0:02:12]} Ng8 {[%emt 0:01:26]} 23. f4 {[%emt 0:00:43]} f5 {[%emt 0:13:03]} 24. Nf1 {[%emt 0:00:15]} h5 {[%emt 0:03:45]} (24... Nf8 $16 25. g4 fxg4) 25. Ne3 {[%emt 0:00:40]} Nf8 {[%emt 0:01:17]} 26. Bh4 {[%emt 0:01:02][%cal Bf2h4,Bh4f6,Bf6g5,Bg5e3][%mdl 32]} Ne6 {[%emt 0:00:42]} 27. Rf1 {[%emt 0:00:18]} Nc7 {[%emt 0:04:19]} (27... Rab8 {keeps fighting.} 28. h3 Nh6) 28. h3 {[%emt 0:01:48][%cal Bh2h3,Bh3g4][%mdl 32] Black is weak on the dark squares} Bd7 {[%emt 0:01:00] [#]} 29. g4 $1 {[%emt 0:05:30][%mdl 512]} hxg4 {[%emt 0:00:50]} 30. hxg4 {[%emt 0:00:09]} Nh6 $2 {[%emt 0:01:45]} (30... fxg4 {was necessary.} 31. f5 Rab8) 31. Bf6+ {[%emt 0:03:24] White is clearly winning.} Kf7 {[%emt 0:00:13]} 32. Kg2 {[%emt 0:06:45]} Ng8 {[%emt 0:08:39]} 33. Bg5 {[%emt 0:03:20]} fxg4 {[%emt 0:00:20]} 34. f5 {[%emt 0:02:41]} gxf5 {[%emt 0:01:06]} 35. Nxf5 {[%emt 0:00:30]} Bxf5 {[%emt 0:00:34]} 36. Bxf5 {[%emt 0:00:12]} Ne6 {[%emt 0:00:36]} 37. Bxg4+ {[%emt 0:00:37] This pair of bishops is nice.} Kg6 {[%emt 0:00:13]} 38. Be3 {[%emt 0:00:39] Threatens to win with Rf3.} Ng7 {[%emt 0:01:38]} 39. Bd1 {[%emt 0:05:38] Threatening mate with Bc2+.} Nf5 {[%emt 0:03:36] [#]} 40. Bh5+ $1 {[%emt 0:03:05][%mdl 512]} Kxh5 {[%emt 0:00:05]} 41. Rxf5+ {[%emt 0:00:03]} Kg6 {[%emt 0:00:07]} 42. Raf1 {[%emt 0:00:06] Black got outplayed after the opening.   Weighted Error Value: White=0.14 (very precise) /Black=0.32.  Mistake:       	---       	Black=4      OK:         	White=12    	Black=11     Best:        	White=1     	Black=1} 1-0

[Event "Charlotte Spring IM-C 2024"]
[Site "Charlotte"]
[Date "2024.03.31"]
[Round "9.2"]
[White "Posthuma, Joshua"]
[Black "Melillo, Lucius"]
[Result "1/2-1/2"]
[ECO "A30"]
[WhiteElo "2449"]
[BlackElo "2274"]
[Annotator "TA"]
[PlyCount "93"]
[EventDate "2024.03.27"]
[EventType "tourn"]
[EventCountry "USA"]
[SourceTitle "playchess.com"]
[Source "ChessBase"]
[SourceQuality "1"]
[TimeControl "5400+30"]

{[%evp 9,93,-4,-5,-7,-7,0,0,0,0,0,17,10,19,14,20,24,20,23,16,20,21,4,15,0,0,0,0,0,21,0,0,0,0,0,0,0,0,0,0,0,0,0,0,-14,-27,-16,9,0,0,0,0,1,5,0,0,0,20,0,26,0,0,0,0,0,24,24,24,0,0,0,0,0,0,0,0,0,0,0,0,0,0,0,0,0,0,0]} 1. Nf3 {[%emt 0:12:04]} c5 {[%emt 0:00:33]} 2. b3 {[%emt 0:01:12]} Nc6 {[%emt 0:00:08]} 3. Bb2 {[%emt 0:00:08]} Nf6 {[%emt 0:00:04]} 4. c4 {[%emt 0:00:57]} g6 {[%emt 0:00:18]} 5. Bxf6 {[%emt 0:00:41]} exf6 {[%emt 0:00:04]} 6. Nc3 {[%emt 0:00:17]} Bg7 {[%emt 0:00:07]} 7. g3 {[%emt 0:01:45]} f5 {[%emt 0:00:54]} 8. Bg2 {[%emt 0:00:42]} O-O {[%emt 0:04:35]} 9. O-O {[%emt 0:00:16]} b6 {[%emt 0:01:12]} 10. Rc1 {[%emt 0:02:42]} Bb7 {[%emt 0:00:12]} 11. e3 {[%emt 0:03:41]} Ne7 {[%emt 0:16:33]} 12. d4 {[%emt 0:00:31]} d6 {[%emt 0:00:05]} 13. Qd3 {[%emt 0:07:43]} Qc7 {[%emt 0:09:13]} 14. Nb5 {[%emt 0:08:57]} Qb8 {[%emt 0:00:19]} 15. dxc5 {[%emt 0:01:00]} dxc5 {[%emt 0:00:55]} 16. Qd6 {[%emt 0:10:14]} (16. Rfd1 {with more complications.} Bb2 17. Rc2 Be4 18. Qe2) 16... Qxd6 {[%emt 0:01:09]} 17. Nxd6 {[%emt 0:00:08]} Bc6 {[%emt 0:00:28]} 18. Rfd1 {[%emt 0:03:38]} Rad8 {[%emt 0:01:30]} 19. Ng5 {[%emt 0:03:39]} Bxg2 {[%emt 0:00:19]} 20. Kxg2 {[%emt 0:00:16]} Nc6 {[%emt 0:00:16]} 21. Nb7 {[%emt 0:04:51] A dynamic duo of knights.} Rb8 {[%emt 0:00:01]} 22. Rd7 {[%emt 0:02:29]} Ne5 {[%emt 0:00:31] Prevents Nf3} 23. Rc7 {[%emt 0:00:10]} Rbc8 {[%emt 0:04:55]} (23... f6 $5 24. Ne6 $8 Rf7 $15) 24. Rxc8 {[%emt 0:00:46]} Rxc8 {[%emt 0:00:02]} 25. Rd1 $1 {[%emt 0:01:00]} Rb8 {[%emt 0:04:02]} 26. Nd6 {[%emt 0:02:02]} Rd8 {[%emt 0:00:53] [#] Strongly threatening ...Bf8.} 27. Rd5 $1 {[%emt 0:01:30][%cal Od6f5]} Bf8 {[%emt 0:11:07]} (27... h6 $5 28. Nf3 Kf8 $11) 28. Nde4 {[%emt 0:06:11]} Rxd5 {[%emt 0:00:34]} 29. Nf6+ {[%emt 0:00:08]} Kh8 {[%emt 0:11:05]} 30. Nxd5 $11 {[%emt 0:00:42][%mdl 4096] Endgame. KBN-KNN} (30. cxd5 Be7 31. Nfxh7 (31. Ngxh7 $2 {loses.} Kg7 $19) 31... c4 32. bxc4 Nxc4 $17) 30... h6 {[%emt 0:01:13]} 31. Nf3 {[%emt 0:01:26]} Nd3 {[%emt 0:01:03]} 32. Nd2 {[%emt 0:05:05]} Bd6 {[%emt 0:00:52]} 33. f4 {[%emt 0:02:24]} Nb4 {[%emt 0:04:31]} 34. Nxb4 {[%emt 0:01:13]} cxb4 {[%emt 0:00:02] KB-KN} 35. Kf3 {[%emt 0:03:22]} Kg7 {[%emt 0:01:48]} 36. e4 {[%emt 0:00:09]} Bc5 {[%emt 0:00:02]} 37. exf5 {[%emt 0:02:36]} gxf5 {[%emt 0:00:03]} 38. g4 {[%emt 0:01:22]} Kg6 {[%emt 0:01:14] The position is equal.} 39. gxf5+ {[%emt 0:01:03]} Kxf5 {[%emt 0:00:12]} 40. Nf1 {[%emt 0:02:43]} Ke6 {[%emt 0:27:26]} 41. Ng3 {[%emt 0:04:47]} f5 {[%emt 0:00:00]} 42. Ne2 {[%emt 0:01:28]} Kf6 {[%emt 0:00:00]} 43. Nc1 {[%emt 0:00:38]} Bd6 {[%emt 0:00:00]} 44. Nd3 {[%emt 0:00:40]} Ke6 {[%emt 0:00:00]} 45. Ke3 {[%emt 0:00:53]} Bc5+ {[%emt 0:00:00]} 46. Kf3 {[%emt 0:00:44]} Bd6 {[%emt 0:00:00]} 47. Ke3 {[%emt 0:01:00] An uneventful encounter.   Weighted Error Value: White=0.04 (flawless) /Black=0.03 (flawless) .  Inaccurate:     	White=1     	---        OK:         	White=20    	Black=16     Best:        	White=1     	Black=2      Strong:       	White=2     	---} 1/2-1/2

[Event "Charlotte Spring IM-C 2024"]
[Site "Charlotte"]
[Date "2024.03.31"]
[Round "9.3"]
[White "Fierro Baquero, Martha L."]
[Black "Wu, Sibo"]
[Result "1/2-1/2"]
[ECO "B23"]
[WhiteElo "2283"]
[BlackElo "2142"]
[Annotator "RC"]
[PlyCount "61"]
[EventDate "2024.03.27"]
[EventType "tourn"]
[EventCountry "USA"]
[SourceTitle "playchess.com"]
[Source "ChessBase"]
[SourceQuality "1"]
[TimeControl "5400+30"]

1. e4 {[%emt 0:01:11]} c5 {[%emt 0:00:08]} 2. Nc3 {[%emt 0:00:03]} Nc6 {[%emt 0:04:45]} 3. Bb5 {[%emt 0:00:04]} g6 {[%emt 0:00:05]} 4. Bxc6 {[%emt 0:00:04]} dxc6 {[%emt 0:00:23]} 5. d3 {[%emt 0:00:03]} Bg7 {[%emt 0:00:12]} 6. Be3 {[%emt 0:00:10]} b6 {[%emt 0:00:24]} 7. Qd2 {[%emt 0:00:03]} e5 {[%emt 0:06:26]} 8. h4 {[%emt 0:02:48]} h6 {[%emt 0:01:33]} 9. O-O-O {[%emt 0:01:21]} Be6 {[%emt 0:21:31]} 10. f4 {[%emt 0:12:03]} Nf6 {[%emt 0:10:48]} 11. fxe5 {[%emt 0:00:06]} Ng4 {[%emt 0:00:28]} 12. Nf3 {[%emt 0:00:04]} Nxe3 {[%emt 0:06:11]} 13. Qxe3 {[%emt 0:00:04]} Qc7 {[%emt 0:00:21]} 14. d4 {[%emt 0:06:09]} cxd4 {[%emt 0:02:58]} 15. Qxd4 {[%emt 0:01:21]} Rd8 {[%emt 0:05:14]} 16. Qxd8+ {[%emt 0:01:08]} Qxd8 {[%emt 0:00:06]} 17. Rxd8+ {[%emt 0:00:04]} Kxd8 {[%emt 0:00:04]} 18. Ne2 {[%emt 0:00:06]} Re8 {[%emt 0:13:41]} 19. Ned4 {[%emt 0:06:58]} Bd7 {[%emt 0:04:52]} 20. Rd1 {[%emt 0:12:09]} Kc7 {[%emt 0:00:24]} 21. Rf1 {[%emt 0:00:04]} Bxe5 {[%emt 0:06:01]} 22. Nxe5 {[%emt 0:00:06]} Rxe5 {[%emt 0:00:03]} 23. Rxf7 {[%emt 0:01:24]} Rxe4 {[%emt 0:00:07]} 24. Nf3 {[%emt 0:00:03]} Kd6 {[%emt 0:01:06]} 25. Rg7 {[%emt 0:00:20]} Bf5 {[%emt 0:00:54]} 26. Rxa7 {[%emt 0:15:50]} Rg4 {[%emt 0:00:17]} 27. h5 {[%emt 0:06:04]} gxh5 {[%emt 0:02:30]} 28. Rf7 {[%emt 0:00:56]} Ke6 {[%emt 0:03:40]} 29. Rc7 {[%emt 0:00:06]} Be4 {[%emt 0:00:43]} 30. Ne1 {[%emt 0:00:51]} Kd6 {[%emt 0:00:23]} 31. Rf7 {[%emt 0:00:07]} 1/2-1/2

[Event "Charlotte Spring IM-C 2024"]
[Site "Charlotte"]
[Date "2024.03.31"]
[Round "9.4"]
[White "Mendez Tovar, Yessica Yissel"]
[Black "Nguyen, James Le"]
[Result "1/2-1/2"]
[ECO "E14"]
[WhiteElo "1993"]
[BlackElo "2114"]
[Annotator "RC"]
[PlyCount "47"]
[EventDate "2024.03.27"]
[EventType "tourn"]
[EventCountry "USA"]
[SourceTitle "playchess.com"]
[Source "ChessBase"]
[SourceQuality "1"]
[TimeControl "5400+30"]

1. d4 {[%emt 0:02:03]} d5 {[%emt 0:00:05]} 2. c4 {[%emt 0:00:05]} e6 {[%emt 0:00:05]} 3. Nf3 {[%emt 0:00:48]} Nf6 {[%emt 0:00:05]} 4. e3 {[%emt 0:00:08]} Be7 {[%emt 0:02:37]} 5. Nc3 {[%emt 0:00:10]} O-O {[%emt 0:00:37]} 6. Bd3 {[%emt 0:00:07]} b6 {[%emt 0:02:48]} 7. cxd5 {[%emt 0:06:13]} exd5 {[%emt 0:00:24]} 8. Ne5 {[%emt 0:00:11]} Bb7 {[%emt 0:00:40]} 9. O-O {[%emt 0:01:22]} Nbd7 {[%emt 0:01:05]} 10. Qf3 {[%emt 0:06:02]} c5 {[%emt 0:08:25]} 11. Qh3 {[%emt 0:01:11]} Nxe5 {[%emt 0:21:52]} 12. dxe5 {[%emt 0:00:07]} Ne4 {[%emt 0:00:55]} 13. f4 {[%emt 0:12:12]} f5 {[%emt 0:02:09]} 14. Rd1 {[%emt 0:07:14]} Qc8 {[%emt 0:08:18]} 15. Bd2 {[%emt 0:07:34]} Nxd2 {[%emt 0:04:16]} 16. Rxd2 {[%emt 0:00:02]} g6 {[%emt 0:03:00]} 17. Rad1 {[%emt 0:04:16]} Rd8 {[%emt 0:02:08]} 18. Kh1 {[%emt 0:01:05]} d4 {[%emt 0:07:25]} 19. Bc4+ {[%emt 0:00:41]} Kg7 {[%emt 0:00:08]} 20. exd4 {[%emt 0:03:49]} cxd4 {[%emt 0:00:04]} 21. Rxd4 {[%emt 0:01:50]} Qc5 {[%emt 0:03:01]} 22. Nd5 {[%emt 0:09:32]} Bxd5 {[%emt 0:01:54]} 23. Bxd5 {[%emt 0:01:04]} Rac8 {[%emt 0:00:41]} 24. Qb3 {[%emt 0:03:15]} 1/2-1/2

[Event "Charlotte Spring IM-C 2024"]
[Site "Charlotte"]
[Date "2024.03.31"]
[Round "9.5"]
[White "Horobetz, Graham"]
[Black "Kunka, Harshid"]
[Result "1/2-1/2"]
[ECO "B17"]
[WhiteElo "2252"]
[BlackElo "2294"]
[Annotator "RC"]
[PlyCount "52"]
[EventDate "2024.03.27"]
[EventType "tourn"]
[EventCountry "USA"]
[SourceTitle "playchess.com"]
[Source "ChessBase"]
[SourceQuality "1"]
[TimeControl "5400+30"]

1. e4 {[%emt 0:00:04]} c6 {[%emt 0:00:09]} 2. d4 {[%emt 0:00:06]} d5 {[%emt 0:00:05]} 3. Nc3 {[%emt 0:00:09]} dxe4 {[%emt 0:00:07]} 4. Nxe4 {[%emt 0:00:08]} Nd7 {[%emt 0:00:05]} 5. Nf3 {[%emt 0:01:13]} Ngf6 {[%emt 1:32:34]} 6. Nxf6+ {[%emt 0:00:52]} Nxf6 {[%emt 0:00:00]} 7. Bc4 {[%emt 0:03:33]} Bf5 {[%emt 0:00:00]} 8. Ne5 {[%emt 0:00:30]} e6 {[%emt 0:00:00]} 9. g4 {[%emt 0:07:37]} Bg6 {[%emt 0:00:00]} 10. h4 Bd6 {[%emt 0:00:00]} 11. Qe2 {[%emt 0:21:24]} Be4 {[%emt 0:00:00]} 12. Rh3 {[%emt 0:04:51]} b5 {[%emt 0:00:00]} 13. Bb3 {[%emt 0:00:30]} Bd5 {[%emt 0:00:00]} 14. g5 {[%emt 0:16:50]} Nd7 {[%emt 0:04:30]} 15. Bf4 {[%emt 0:10:19]} Bxe5 {[%emt 0:00:00]} 16. Bxe5 {[%emt 0:00:22]} Nxe5 {[%emt 0:00:00]} 17. Qxe5 {[%emt 0:05:24]} O-O {[%emt 0:00:00]} 18. c3 {[%emt 0:01:37]} Bxb3 {[%emt 0:00:00]} 19. axb3 {[%emt 0:00:06]} a5 {[%emt 0:00:00]} 20. h5 {[%emt 0:05:22]} Qd5 {[%emt 0:00:00]} 21. h6 {[%emt 0:01:54]} f6 {[%emt 0:00:00]} 22. Qxd5 {[%emt 0:01:07]} exd5 {[%emt 0:00:00]} 23. hxg7 {[%emt 0:00:20]} Kxg7 {[%emt 0:00:00]} 24. gxf6+ {[%emt 0:04:42]} Rxf6 {[%emt 0:00:00]} 25. Rg3+ {[%emt 0:00:51]} Kh8 {[%emt 0:00:00]} 26. Kf1 {[%emt 0:00:45]} h6 {[%emt 0:00:00]} 1/2-1/2